fUSD/lending_fUSD_20250502
["ID","MTS","AMOUNT","RATE_DAILY","PERIOD"]
[359595977,1746174645857,-900.96,0.00019824,2]
[359595978,1746174645866,-2654.05,0.00019824,2]
[359595979,1746174645876,-450.0,0.00019824,2]
[359595980,1746174645885,-777.35,0.00019824,2]
[359595981,1746174645894,-745.17,0.00019824,2]
[359595982,1746174645904,-450.0,0.00019824,2]
[359595983,1746174645913,-22710.77,0.00019824,2]
[359595984,1746174645923,-450.0,0.00019824,2]
[359595985,1746174645932,-932.96,0.00019824,2]
[359595986,1746174645941,-752.55,0.00019824,2]
[359595987,1746174645952,-794.58,0.00019824,2]
[359595988,1746174645961,-591.28,0.00019824,2]
[359595989,1746174645971,-642.08,0.00019824,2]
[359595990,1746174645980,-594.3,0.00019824,2]
[359595991,1746174645990,-12017.67,0.00019824,2]
[359595992,1746174646000,-778.32,0.00019824,2]
[359595993,1746174646009,-545.12,0.00019824,2]
[359595994,1746174646019,-757.38,0.00019824,2]
[359595995,1746174646028,-767.8,0.00019824,2]
[359595996,1746174646038,-738.61,0.00019824,2]
[359595998,1746174646047,-514.99,0.00019824,2]
[359595999,1746174646056,-468.71,0.00019824,2]
[359596000,1746174646065,-450.0,0.00019824,2]
[359596001,1746174646075,-1122.41,0.00019824,2]
[359596002,1746174646084,-450.0,0.00019824,2]
[359596003,1746174646094,-450.0,0.00019824,2]
[359596004,1746174646103,-450.0,0.00019824,2]
[359596005,1746174646113,-715.91,0.00019824,2]
[359596006,1746174646123,-1451.05,0.00019824,2]
[359596007,1746174646133,-1555.14,0.00019824,2]
[359596008,1746174646142,-450.0,0.00019824,2]
[359596009,1746174646151,-2667.88,0.00019824,2]
[359596010,1746174646161,-450.0,0.00019824,2]
[359596011,1746174646171,-837.26,0.00019824,2]
[359596012,1746174646180,-450.0,0.00019824,2]
[359596013,1746174646190,-450.0,0.00019824,2]
[359596014,1746174646199,-659.06,0.00019824,2]
[359596015,1746174646208,-450.0,0.00019824,2]
[359596016,1746174646218,-660.64,0.00019824,2]
[359596017,1746174646227,-450.0,0.00019824,2]
[359596018,1746174646237,-594.05,0.00019824,2]
[359596019,1746174646247,-1956.99,0.00019824,2]
[359596020,1746174646257,-924.77,0.00019824,2]
[359596021,1746174646266,-534.6,0.00019824,2]
[359596022,1746174646276,-663.48,0.00019824,2]
[359596023,1746174646286,-1328.97,0.00019824,2]
[359596024,1746174646295,-622.77,0.00019824,2]
[359596025,1746174646304,-1020.68,0.00019824,2]
[359596026,1746174646314,-969.93,0.00019824,2]
[359596027,1746174646324,-975.28,0.00019824,2]
[359596028,1746174646334,-450.0,0.00019824,2]
[359596029,1746174646344,-4097.7,0.00019824,2]
[359596030,1746174646354,-450.0,0.00019824,2]
[359596031,1746174646364,-6750.89,0.00019824,2]
[359596032,1746174646373,-450.0,0.00019824,2]
[359596033,1746174646383,-327.09153043,0.00019824,2]
[359596034,1746174646392,-450.0,0.00019824,2]
[359596035,1746174646402,-589.01,0.00019824,2]
[359596036,1746174646412,-450.0,0.00019824,2]
[359596037,1746174646421,-450.0,0.00019824,2]
[359596038,1746174646431,-794.2,0.00019824,2]
[359596039,1746174646440,-450.0,0.00019824,2]
[359596040,1746174646450,-855.93,0.00019824,2]
[359596041,1746174646459,-450.0,0.00019824,2]
[359596042,1746174646468,-1056.2,0.00019824,2]
[359596043,1746174646478,-1340.64,0.00019824,2]
[359596044,1746174646487,-450.0,0.00019824,2]
[359596045,1746174646496,-450.0,0.00019824,2]
[359596046,1746174646506,-1583.09,0.00019824,2]
[359596047,1746174646516,-450.0,0.00019824,2]
[359596048,1746174646526,-2700.16,0.00019824,2]
[359596049,1746174646535,-844.18,0.00019824,2]
[359596050,1746174646544,-959.43,0.00019824,2]
[359596051,1746174646553,-1235.73,0.00019824,2]
[359596052,1746174646562,-450.0,0.00019824,2]
[359596053,1746174646571,-221.57357539,0.00019824,2]
[359596054,1746174646581,-450.0,0.00019824,2]
[359596055,1746174646590,-3167.46,0.00019824,2]
[359596056,1746174646599,-2422.52,0.00019824,2]
[359596057,1746174646609,-3884.03,0.00019824,2]
[359596058,1746174646618,-450.0,0.00019824,2]
[359596059,1746174646627,-450.0,0.00019824,2]
[359596060,1746174646637,-1630.68,0.00019824,2]
[359596061,1746174646646,-450.0,0.00019824,2]
[359596062,1746174646655,-450.0,0.00019824,2]
[359596063,1746174646664,-1381.57,0.00019824,2]
[359596064,1746174646676,-1110.2,0.00019824,2]
[359596066,1746174646686,-1702.05,0.00019824,2]
[359596067,1746174646695,-591.45,0.00019824,2]
[359596068,1746174646704,-450.0,0.00019824,2]
[359596069,1746174646715,-815.03,0.00019824,2]
[359596070,1746174646724,-450.0,0.00019824,2]
[359596071,1746174646733,-450.0,0.00019824,2]
[359596072,1746174646742,-450.0,0.00019824,2]
[359596073,1746174646752,-7983.21,0.00019824,2]
[359596074,1746174646761,-450.0,0.00019824,2]
[359596075,1746174646771,-2770.35,0.00019824,2]
[359596076,1746174646780,-450.0,0.00019824,2]
[359596077,1746174646789,-829.91,0.00019824,2]
[359596078,1746174646799,-531.99,0.00019824,2]
[359596079,1746174646810,-450.0,0.00019824,2]
[359596080,1746174646820,-1123.78,0.00019824,2]
[359596081,1746174646830,-898.05,0.00019824,2]
[359596082,1746174646840,-450.0,0.00019824,2]
[359596084,1746174646850,-971.38,0.00019824,2]
[359596086,1746174646859,-4600.69491317,0.00019824,2]
[359596088,1746174648101,-4303.55508683,0.00019824,2]
[359596089,1746174648114,-450.0,0.00019824,2]
[359596090,1746174648125,-933.69,0.00019824,2]
[359596091,1746174648135,-450.0,0.00019824,2]
[359596092,1746174648145,-501.45,0.00019824,2]
[359596093,1746174648154,-3052.47565001,0.00019824,2]
[359596094,1746174648260,-234.38434999,0.00019824,2]
[359596095,1746174648269,-627.48,0.00019824,2]
[359596096,1746174648279,-450.0,0.00019824,2]
[359596097,1746174648288,-1173.64,0.00019824,2]
[359596098,1746174648297,-450.0,0.00019824,2]
[359596099,1746174648307,-450.0,0.00019824,2]
[359596100,1746174648317,-450.0,0.00019824,2]
[359596101,1746174648327,-1530.17,0.00019824,2]
[359596102,1746174648337,-525.31,0.00019824,2]
[359596103,1746174648347,-450.0,0.00019824,2]
[359596104,1746174648357,-450.0,0.00019824,2]
[359596105,1746174648367,-628.35,0.00019824,2]
[359596106,1746174648376,-964.82,0.00019824,2]
[359596107,1746174648385,-450.0,0.00019824,2]
[359596108,1746174648394,-844.96,0.00019824,2]
[359596109,1746174648403,-450.0,0.00019824,2]
[359596110,1746174648411,-8823.11,0.00019824,2]
[359596111,1746174648420,-1020.87,0.00019824,2]
[359596112,1746174648429,-450.0,0.00019824,2]
[359596113,1746174648438,-12463.47762836,0.00019824,2]
[359596116,1746174795948,728.74,0.00018871,2]
[359596118,1746174822163,1600.0,0.000192,7]
[359596119,1746174824276,3300.0,0.000193,7]
[359596120,1746174826551,4900.0,0.000194,7]
[359596121,1746174826599,636.87,0.00018865,2]
[359596122,1746174828507,6600.0,0.000195,7]
[359596123,1746174830664,8300.0,0.000196,7]
[359596124,1746174832760,1600.0,0.000197,7]
[359596125,1746174834849,1600.0,0.000198,7]
[359596126,1746174836986,1600.0,0.000199,7]
[359596127,1746174988347,151.0,0.00019824,7]
[359596128,1746174988846,151.0,0.00019824,7]
[359596129,1746174989630,151.0,0.00019824,7]
[359596130,1746174990097,151.0,0.00019824,7]
[359596131,1746174990566,151.0,0.00019824,7]
[359596134,1746175025528,207.52769,0.0001985,23]
[359596135,1746175104938,250.0,0.00018843,7]
[359596136,1746175109577,2027.98,0.00018843,2]
[359596137,1746175129387,201.13829381,0.00019283,2]
[359596138,1746175170393,4944.59,0.00032876,60]
[359596140,1746175237050,611.44,0.00016862,2]
[359596141,1746175237261,611.44,0.00019125,2]
[359596142,1746175251076,251.05216898,0.00019325,2]
[359596143,1746175384822,840.96250909,0.00018329,2]
[359596144,1746175385184,840.96250909,0.00018564,2]
[359596145,1746175386369,840.96250909,0.00018781,2]
[359596146,1746175386549,840.96250909,0.00019161,2]
[359596147,1746175386612,840.96250909,0.00019318,2]
[359596148,1746175459519,912.87888438,0.00018775,2]
[359596149,1746175459886,87.12111562,0.00018775,2]
[359596150,1746175482944,2912.87888438,0.00018761,2]
[359596151,1746175482970,3000.0,0.00018761,2]
[359596152,1746175482993,1888.26111562,0.00018761,2]
[359596156,1746175524165,250.0,0.00018754,2]
[359596163,1746175550422,178.79,0.000193,2]
[359596170,1746175797941,166.63,0.00019307,2]
[359596171,1746175800930,200.0,0.00018744,2]
[359596172,1746175802640,2000.0,0.0002,4]
[359596176,1746175817960,161.59,0.00018736,2]
[359596189,1746175831924,-187.06215378,0.0001955,2]
[359596190,1746175831934,-230.09795542,0.00019578,2]
[359596191,1746175831947,-19.90204458,0.00019578,2]
[359596192,1746175831957,-156.20860496,0.0001958,2]
[359596193,1746175831966,-187.06215376,0.00019585,2]
[359596194,1746175831976,-200.0,0.00019597,2]
[359596195,1746175831986,-827.69726303,0.000196,2]
[359596196,1746175831995,-299.07826738,0.000196,2]
[359596197,1746175832005,-187.06215376,0.0001962,2]
[359596198,1746175832015,-870.2646,0.00019622,2]
[359596199,1746175832026,-192.69122693,0.0001965,2]
[359596200,1746175832063,-222.74467307,0.0001965,2]
[359596201,1746175832073,-1617.7153,0.0001965,2]
[359596202,1746175832083,-1200.0,0.0001968,2]
[359596203,1746175832092,-300.0,0.0001968,2]
[359596204,1746175832102,-300.0,0.0001968,2]
[359596205,1746175832112,-28785.99334298,0.00019681,2]
[359596206,1746175832122,-1000.0,0.00019701,2]
[359596207,1746175832131,-2512.9665,0.00019701,2]
[359596208,1746175832141,-28785.99334295,0.00019705,2]
[359596209,1746175832151,-195.12450129,0.00019721,2]
[359596210,1746175832160,-500.0,0.00019722,2]
[359596211,1746175832170,-500.0,0.00019722,2]
[359596212,1746175832179,-500.0,0.00019722,2]
[359596213,1746175832189,-500.0,0.00019722,2]
[359596214,1746175832199,-500.0,0.00019722,2]
[359596215,1746175832209,-500.0,0.00019722,2]
[359596216,1746175832219,-500.0,0.00019722,2]
[359596217,1746175832229,-500.0,0.00019722,2]
[359596218,1746175832238,-500.0,0.00019722,2]
[359596219,1746175832247,-500.0,0.00019722,2]
[359596220,1746175832257,-500.0,0.00019722,2]
[359596221,1746175832266,-500.0,0.00019722,2]
[359596222,1746175832275,-500.0,0.00019722,2]
[359596223,1746175832284,-500.0,0.00019722,2]
[359596224,1746175832294,-500.0,0.00019722,2]
[359596225,1746175832304,-500.0,0.00019722,2]
[359596226,1746175832313,-500.0,0.00019722,2]
[359596227,1746175832326,-500.0,0.00019722,2]
[359596228,1746175832337,-500.0,0.00019722,2]
[359596229,1746175832348,-500.0,0.00019722,2]
[359596230,1746175832359,-500.0,0.00019722,2]
[359596231,1746175832370,-320.21636947,0.00019722,2]
[359596232,1746175832380,-500.0,0.00019722,2]
[359596233,1746175832390,-500.0,0.00019722,2]
[359596234,1746175832400,-500.0,0.00019722,2]
[359596235,1746175832411,-500.0,0.00019722,2]
[359596236,1746175832422,-500.0,0.00019722,2]
[359596237,1746175832431,-500.0,0.00019722,2]
[359596238,1746175832443,-500.0,0.00019722,2]
[359596239,1746175832453,-500.0,0.00019722,2]
[359596240,1746175832464,-500.0,0.00019722,2]
[359596241,1746175832473,-500.0,0.00019722,2]
[359596242,1746175832483,-500.0,0.00019722,2]
[359596243,1746175832493,-500.0,0.00019722,2]
[359596244,1746175832502,-500.0,0.00019722,2]
[359596245,1746175832512,-500.0,0.00019722,2]
[359596246,1746175832521,-500.0,0.00019722,2]
[359596247,1746175832532,-500.0,0.00019722,2]
[359596248,1746175832542,-500.0,0.00019722,2]
[359596249,1746175832552,-500.0,0.00019722,2]
[359596250,1746175832562,-500.0,0.00019722,2]
[359596251,1746175832573,-500.0,0.00019722,2]
[359596252,1746175832583,-500.0,0.00019722,2]
[359596253,1746175832592,-500.0,0.00019722,2]
[359596254,1746175832602,-500.0,0.00019722,2]
[359596255,1746175832611,-413.48057001,0.00019722,2]
[359596256,1746175832621,-500.0,0.00019722,2]
[359596257,1746175832631,-500.0,0.00019722,2]
[359596258,1746175832641,-440.8552353,0.00019722,2]
[359596259,1746175832651,-850.0,0.00019722,2]
[359596260,1746175832660,-386.42720275,0.00019722,2]
[359596261,1746175832670,-500.0,0.00019723,2]
[359596262,1746175832680,-803.5125,0.00019723,2]
[359596263,1746175832690,-2022.3081,0.00019723,2]
[359596264,1746175832700,-200.0,0.00019723,2]
[359596265,1746175832709,-20269.9158,0.00019723,2]
[359596266,1746175832719,-6732.8258,0.00019723,2]
[359596267,1746175832729,-170.35698366,0.00019724,2]
[359596268,1746175832738,-225.0,0.00019725,2]
[359596269,1746175832748,-28785.99334295,0.0001973,2]
[359596270,1746175832757,-12500.0,0.00019733,2]
[359596271,1746175832767,-12500.0,0.00019742,2]
[359596272,1746175832776,-195.12450125,0.00019747,2]
[359596273,1746175832786,-53810.93226728,0.00019747,2]
[359596274,1746175832799,-47474.93275739,0.00019747,2]
[359596275,1746175832808,-12500.0,0.0001975,2]
[359596276,1746175832818,-28785.99334295,0.00019754,2]
[359596277,1746175832827,-12500.0,0.00019759,2]
[359596278,1746175832837,-440.8552353,0.00019767,2]
[359596279,1746175832847,-12500.0,0.00019768,2]
[359596280,1746175832857,-195.12450125,0.00019772,2]
[359596281,1746175832866,-4686.6081895,0.00019777,2]
[359596282,1746175832888,-6364.31449639,0.00019777,2]
[359596283,1746175832900,-563.70807734,0.00019777,2]
[359596284,1746175832926,-885.36923677,0.00019777,2]
[359596285,1746175832936,-617.09928529,0.00019778,2]
[359596287,1746175837377,-182.22149637,0.00019658,2]
[359596288,1746175837387,-165.27,0.00019737,2]
[359596290,1746175837396,-165.27,0.00019737,2]
[359596291,1746175837405,-165.27,0.00019737,2]
[359596292,1746175837416,-165.27,0.00019737,2]
[359596293,1746175837425,-165.27,0.0001974,2]
[359596294,1746175837434,-165.27,0.00019744,2]
[359596295,1746175837444,-165.27,0.00019749,2]
[359596296,1746175837453,-165.27,0.00019767,2]
[359596297,1746175837463,-165.27,0.00019768,2]
[359596298,1746175837473,-165.27,0.00019771,2]
[359596299,1746175837482,-3964.14774146,0.00019778,2]
[359596300,1746175837617,-16.78896817,0.00019778,2]
[359596301,1746175837648,-748.1399885,0.00019778,2]
[359596302,1746175837669,-23439.81735953,0.00019778,2]
[359596303,1746175837678,-12500.0,0.00019786,2]
[359596304,1746175837690,-187.92753328,0.00019793,2]
[359596305,1746175837699,-217.66300042,0.00019793,2]
[359596306,1746175837708,-1657669.09275914,0.00019794,2]
[359596307,1746175837718,-971.63,0.00019794,2]
[359596308,1746175837728,-779.75,0.00019794,2]
[359596309,1746175837738,-790.0,0.00019794,2]
[359596311,1746175837747,-1143.59,0.00019794,2]
[359596312,1746175837757,-450.0,0.00019794,2]
[359596314,1746175837766,-574.12,0.00019794,2]
[359596343,1746175838011,-12761.94,0.00019794,2]
[359596345,1746175838035,-450.0,0.00019794,2]
[359596347,1746175838045,-1032.42,0.00019794,2]
[359596349,1746175838054,-12500.0,0.00019794,2]
[359596351,1746175838064,-195.12450125,0.00019798,2]
[359596353,1746175838074,-155.5769965,0.00019799,2]
[359596355,1746175838084,-500.0,0.000198,2]
[359596357,1746175838093,-539.94,0.000198,2]
[359596359,1746175838104,-450.0,0.000198,2]
[359596361,1746175838113,-636.99,0.000198,2]
[359596363,1746175838122,-450.0,0.000198,2]
[359596365,1746175838131,-1126.62,0.000198,2]
[359596367,1746175838140,-450.0,0.000198,2]
[359596369,1746175838149,-610.28,0.000198,2]
[359596371,1746175838158,-1445.22,0.000198,2]
[359596373,1746175838168,-756.02,0.000198,2]
[359596375,1746175838177,-451.48,0.000198,2]
[359596377,1746175838186,-450.0,0.000198,2]
[359596379,1746175838195,-450.0,0.000198,2]
[359596381,1746175838205,-450.0,0.000198,2]
[359596383,1746175838214,-1087.68,0.000198,2]
[359596385,1746175838223,-594.01,0.000198,2]
[359596387,1746175838232,-450.0,0.000198,2]
[359596389,1746175838241,-450.0,0.000198,2]
[359596391,1746175838250,-1236.97,0.000198,2]
[359596393,1746175838259,-450.0,0.000198,2]
[359596395,1746175838268,-450.0,0.000198,2]
[359596397,1746175838277,-2320.83,0.000198,2]
[359596399,1746175838287,-450.0,0.00019801,2]
[359596401,1746175838296,-874.847297,0.00019801,2]
[359596403,1746175838305,-723.56,0.00019801,2]
[359596405,1746175838315,-660.53,0.00019801,2]
[359596407,1746175838324,-450.0,0.00019801,2]
[359596409,1746175838334,-712.23,0.00019801,2]
[359596411,1746175838343,-2457.73,0.00019801,2]
[359596413,1746175838353,-1203.682994,0.00019801,2]
[359596415,1746175838362,-450.0,0.00019801,2]
[359596417,1746175838373,-4548.42,0.00019801,2]
[359596419,1746175838382,-450.0,0.00019801,2]
[359596421,1746175838391,-858.99,0.00019801,2]
[359596423,1746175838401,-450.0,0.00019801,2]
[359596425,1746175838409,-450.0,0.00019801,2]
[359596427,1746175838419,-450.0,0.00019801,2]
[359596429,1746175838429,-2061.45,0.00019801,2]
[359596431,1746175838439,-514.03,0.00019801,2]
[359596433,1746175838449,-461.19,0.00019801,2]
[359596435,1746175838458,-543.51,0.00019801,2]
[359596437,1746175838467,-3152.73,0.00019801,2]
[359596439,1746175838476,-645.91,0.00019801,2]
[359596441,1746175838485,-914.37,0.00019801,2]
[359596443,1746175838494,-1125.99,0.00019801,2]
[359596445,1746175838503,-450.0,0.00019801,2]
[359596447,1746175838513,-450.0,0.00019801,2]
[359596449,1746175838522,-450.0,0.00019801,2]
[359596451,1746175838532,-2646.92,0.00019801,2]
[359596453,1746175838541,-972.42,0.00019801,2]
[359596455,1746175838550,-550.76540108,0.00019802,2]
[359596457,1746175838561,-28785.99334295,0.00019803,2]
[359596459,1746175838570,-450.0,0.00019803,2]
[359596461,1746175838579,-450.0,0.00019803,2]
[359596463,1746175838588,-450.0,0.00019803,2]
[359596465,1746175838597,-450.0,0.00019803,2]
[359596467,1746175838607,-450.0,0.00019803,2]
[359596469,1746175838616,-450.0,0.00019803,2]
[359596471,1746175838625,-450.0,0.00019803,2]
[359596473,1746175838635,-450.0,0.00019803,2]
[359596474,1746175838645,-466.93766647,0.00019803,2]
[359596475,1746175838654,-450.0,0.00019803,2]
[359596476,1746175838663,-450.0,0.00019803,2]
[359596478,1746175838673,-424.0259524,0.00019803,2]
[359596480,1746175838682,-799.67,0.00019803,2]
[359596482,1746175838691,-747.15,0.00019803,2]
[359596484,1746175838700,-450.0,0.00019803,2]
[359596486,1746175838710,-450.0,0.00019803,2]
[359596488,1746175838719,-450.0,0.00019803,2]
[359596490,1746175838728,-450.0,0.00019803,2]
[359596492,1746175838737,-450.0,0.00019803,2]
[359596494,1746175838746,-478.87,0.00019803,2]
[359596496,1746175838756,-177.1795869,0.00019803,2]
[359596498,1746175838765,-450.0,0.00019803,2]
[359596500,1746175838774,-450.0,0.00019803,2]
[359596502,1746175838783,-469.7,0.00019803,2]
[359596504,1746175838792,-450.0,0.00019803,2]
[359596506,1746175838802,-450.0,0.00019803,2]
[359596508,1746175838812,-250.0,0.00019803,2]
[359596510,1746175838821,-450.0,0.00019803,2]
[359596512,1746175838831,-450.0,0.00019803,2]
[359596514,1746175838841,-450.0,0.00019803,2]
[359596516,1746175838857,-450.0,0.00019803,2]
[359596518,1746175838866,-450.0,0.00019803,2]
[359596520,1746175838875,-657.77,0.00019803,2]
[359596522,1746175838884,-450.0,0.00019803,2]
[359596524,1746175838894,-450.0,0.00019803,2]
[359596526,1746175838903,-450.0,0.00019803,2]
[359596528,1746175838912,-276.44485914,0.00019803,2]
[359596530,1746175838922,-450.0,0.00019803,2]
[359596531,1746175838931,-450.0,0.00019803,2]
[359596533,1746175838940,-450.0,0.00019803,2]
[359596535,1746175838949,-450.0,0.00019803,2]
[359596537,1746175838958,-450.0,0.00019803,2]
[359596539,1746175838967,-450.0,0.00019803,2]
[359596541,1746175838977,-450.0,0.00019803,2]
[359596543,1746175838986,-450.0,0.00019803,2]
[359596545,1746175838995,-450.0,0.00019803,2]
[359596548,1746175839006,-450.0,0.00019803,2]
[359596550,1746175839016,-369.86021687,0.00019803,2]
[359596552,1746175839028,-450.0,0.00019803,2]
[359596554,1746175839042,-450.0,0.00019803,2]
[359596555,1746175839052,-749.97,0.00019803,2]
[359596557,1746175839063,-588.70547733,0.00019803,2]
[359596559,1746175839072,-450.0,0.00019803,2]
[359596561,1746175839081,-450.0,0.00019803,2]
[359596563,1746175839091,-450.0,0.00019803,2]
[359596565,1746175839100,-450.0,0.00019803,2]
[359596567,1746175839111,-450.0,0.00019803,2]
[359596569,1746175839120,-551.6356764,0.00019803,2]
[359596571,1746175839129,-450.0,0.00019803,2]
[359596573,1746175839139,-450.0,0.00019803,2]
[359596576,1746175839149,-501.39,0.00019803,2]
[359596577,1746175839158,-450.0,0.00019803,2]
[359596580,1746175839168,-450.0,0.00019803,2]
[359596581,1746175839177,-450.0,0.00019803,2]
[359596583,1746175839186,-450.0,0.00019803,2]
[359596585,1746175839196,-450.0,0.00019803,2]
[359596588,1746175839206,-1210.15,0.00019803,2]
[359596589,1746175839215,-450.0,0.00019803,2]
[359596592,1746175839226,-450.0,0.00019803,2]
[359596594,1746175839235,-316.71372366,0.00019803,2]
[359596596,1746175839245,-450.0,0.00019803,2]
[359596598,1746175839255,-450.0,0.00019803,2]
[359596600,1746175839264,-730.31,0.00019803,2]
[359596601,1746175839273,-450.0,0.00019803,2]
[359596604,1746175839283,-450.0,0.00019803,2]
[359596606,1746175839292,-450.0,0.00019803,2]
[359596608,1746175839302,-450.0,0.00019803,2]
[359596610,1746175839312,-450.0,0.00019803,2]
[359596611,1746175839321,-450.0,0.00019803,2]
[359596613,1746175839331,-450.0,0.00019803,2]
[359596615,1746175839340,-450.0,0.00019803,2]
[359596618,1746175839350,-450.0,0.00019803,2]
[359596619,1746175839360,-450.0,0.00019803,2]
[359596622,1746175839371,-450.0,0.00019803,2]
[359596625,1746175839380,-450.0,0.00019803,2]
[359596628,1746175839390,-450.0,0.00019803,2]
[359596631,1746175839399,-450.0,0.00019803,2]
[359596634,1746175839408,-450.0,0.00019803,2]
[359596637,1746175839418,-370.09115084,0.00019803,2]
[359596640,1746175839427,-958.07,0.00019803,2]
[359596642,1746175839437,-450.0,0.00019803,2]
[359596645,1746175839446,-461.93,0.00019803,2]
[359596648,1746175839455,-688.41,0.00019803,2]
[359596651,1746175839464,-450.0,0.00019803,2]
[359596653,1746175839474,-450.0,0.00019803,2]
[359596656,1746175839483,-602.89,0.00019803,2]
[359596659,1746175839493,-450.0,0.00019803,2]
[359596662,1746175839502,-450.0,0.00019803,2]
[359596665,1746175839512,-283.69596691,0.00019803,2]
[359596668,1746175839521,-450.0,0.00019803,2]
[359596670,1746175839531,-450.0,0.00019803,2]
[359596672,1746175839540,-450.0,0.00019803,2]
[359596674,1746175839550,-12500.0,0.00019803,2]
[359596676,1746175839559,-440.8552353,0.00019811,2]
[359596678,1746175839568,-233.55075498,0.00019812,2]
[359596680,1746175839578,-12500.0,0.00019812,2]
[359596682,1746175839587,-12500.0,0.00019821,2]
[359596684,1746175839597,-593.14,0.00019821,2]
[359596686,1746175839606,-200.0,0.00019821,2]
[359596689,1746175839616,-473.64104789,0.00019821,2]
[359596692,1746175839625,-875.04,0.00019821,2]
[359596694,1746175839634,-450.0,0.00019821,2]
[359596697,1746175839644,-510.98194612,0.00019821,2]
[359596700,1746175839654,-473.30787121,0.00019821,2]
[359596703,1746175839664,-472.37385001,0.00019821,2]
[359596706,1746175839674,-500.0,0.00019821,2]
[359596709,1746175839683,-518.2237527,0.00019821,2]
[359596712,1746175839694,-471.4856543,0.00019821,2]
[359596715,1746175839703,-450.0,0.00019821,2]
[359596718,1746175839713,-470.0,0.00019821,2]
[359596721,1746175839722,-450.0,0.00019821,2]
[359596724,1746175839731,-450.0,0.00019821,2]
[359596726,1746175839740,-559.5221783,0.00019821,2]
[359596729,1746175839751,-473.75793715,0.00019821,2]
[359596732,1746175839761,-450.0,0.00019821,2]
[359596736,1746175839771,-842.93,0.00019821,2]
[359596739,1746175839781,-472.06857966,0.00019821,2]
[359596741,1746175839789,-450.0,0.00019821,2]
[359596744,1746175839799,-470.0,0.00019821,2]
[359596747,1746175839809,-471.40845704,0.00019821,2]
[359596751,1746175839819,-450.0,0.00019821,2]
[359596754,1746175839828,-470.0,0.00019821,2]
[359596757,1746175839838,-518.99099404,0.00019821,2]
[359596759,1746175839847,-450.0,0.00019821,2]
[359596762,1746175839856,-470.0,0.00019821,2]
[359596765,1746175839865,-619.78,0.00019821,2]
[359596768,1746175839874,-550.88153477,0.00019821,2]
[359596771,1746175839884,-450.0,0.00019821,2]
[359596774,1746175839893,-513.23602094,0.00019821,2]
[359596778,1746175839902,-472.82180918,0.00019821,2]
[359596781,1746175839911,-1610.57,0.00019821,2]
[359596783,1746175839920,-450.0,0.00019821,2]
[359596786,1746175839929,-549.50027318,0.00019821,2]
[359596788,1746175839938,-526.44962448,0.00019821,2]
[359596791,1746175839947,-450.0,0.00019821,2]
[359596794,1746175839956,-450.0,0.00019821,2]
[359596797,1746175839965,-542.562564,0.00019821,2]
[359596800,1746175839974,-500.0,0.00019821,2]
[359596803,1746175839983,-475.47,0.00019821,2]